[Event "Titled Tuesday Blitz November 29 Late 2022"]
[White "Gurevich, Dmitry"]
[Black "Lopez Perdomo, Juan David"]
[WhiteFideId "2000407"]
[BlackFideId "4405137"]
[WhiteElo "2506"]
[BlackElo "1965"]
[Result "1-0"]
[Round "03"]
[TimeControl "180+1"]
[Date "2022.11.30"]
[WhiteClock "0:00:32"]
[BlackClock "0:01:37"]

1. d4 {[%clk 0:03:00]}  e6 {[%clk 0:03:00]} 2. c4 {[%clk 0:03:00]}  c5 {[%clk 0:03:01]} 3. Nf3 {[%clk 0:02:57]}  cxd4 {[%clk 0:03:01]} 4. Nxd4 {[%clk 0:02:57]}  d6 {[%clk 0:03:02]} 5. Nc3 {[%clk 0:02:56]}  Nf6 {[%clk 0:03:03]} 6. e4 {[%clk 0:02:55]}  Be7 {[%clk 0:03:04]} 7. Be2 {[%clk 0:02:55]}  O-O {[%clk 0:03:04]} 8. O-O {[%clk 0:02:55]}  Nc6 {[%clk 0:03:05]} 9. Be3 {[%clk 0:02:55]}  Nxd4 {[%clk 0:03:04]} 10. Bxd4 {[%clk 0:02:55]}  a6 {[%clk 0:03:05]} 11. Rc1 {[%clk 0:02:53]}  Bd7 {[%clk 0:03:05]} 12. f3 {[%clk 0:02:50]}  Bc6 {[%clk 0:03:06]} 13. Qd2 {[%clk 0:02:47]}  Rc8 {[%clk 0:03:02]} 14. Rfd1 {[%clk 0:02:41]}  Re8 {[%clk 0:02:55]} 15. b3 {[%clk 0:02:39]}  Qa5 {[%clk 0:02:52]} 16. Nd5 {[%clk 0:02:33]}  Qxd2 {[%clk 0:02:38]} 17. Nxe7+ {[%clk 0:02:32]}  Kf8 {[%clk 0:02:38]} 18. Rxd2 {[%clk 0:02:28]}  Kxe7 {[%clk 0:02:39]} 19. Rcd1 {[%clk 0:02:26]}  Red8 {[%clk 0:02:38]} 20. g4 {[%clk 0:02:20]}  h6 {[%clk 0:02:38]} 21. h4 {[%clk 0:02:19]}  d5 {[%clk 0:02:32]} 22. exd5 {[%clk 0:01:35]}  exd5 {[%clk 0:02:31]} 23. cxd5 {[%clk 0:01:33]}  Rxd5 {[%clk 0:02:29]} 24. Bxf6+ {[%clk 0:01:32]}  Kxf6 {[%clk 0:01:54]} 25. Rxd5 {[%clk 0:01:30]}  Bxd5 {[%clk 0:01:55]} 26. Rxd5 {[%clk 0:01:29]}  Rc2 {[%clk 0:01:56]} 27. Kf2 {[%clk 0:01:16]}  Rxa2 {[%clk 0:01:56]} 28. Rd6+ {[%clk 0:01:17]}  Ke7 {[%clk 0:01:54]} 29. Rb6 {[%clk 0:01:17]}  a5 {[%clk 0:01:51]} 30. Rxb7+ {[%clk 0:01:16]}  Kf6 {[%clk 0:01:51]} 31. f4 {[%clk 0:01:12]}  a4 {[%clk 0:01:49]} 32. Rb6+ {[%clk 0:01:07]}  Ke7 {[%clk 0:01:49]} 33. bxa4 {[%clk 0:01:04]}  Rxa4 {[%clk 0:01:49]} 34. Ke3 {[%clk 0:01:03]}  Ra7 {[%clk 0:01:46]} 35. Bf3 {[%clk 0:01:02]}  g6 {[%clk 0:01:43]} 36. Rb7+ {[%clk 0:01:01]}  Rxb7 {[%clk 0:01:42]} 37. Bxb7 {[%clk 0:01:02]}  Kf6 {[%clk 0:01:42]} 38. Bd5 {[%clk 0:00:59]}  g5 {[%clk 0:01:42]} 39. fxg5+ {[%clk 0:00:48]}  hxg5 {[%clk 0:01:39]} 40. h5 {[%clk 0:00:48]}  Ke5 {[%clk 0:01:38]} 41. Bxf7 {[%clk 0:00:46]}  Kf6 {[%clk 0:01:38]} 42. Bc4 {[%clk 0:00:45]}  Kg7 {[%clk 0:01:38]} 43. Ke4 {[%clk 0:00:44]}  Kf6 {[%clk 0:01:34]} 44. Bb3 {[%clk 0:00:43]}  Kg7 {[%clk 0:01:32]} 45. Kf5 {[%clk 0:00:42]}  Kh6 {[%clk 0:01:33]} 46. Kf6 {[%clk 0:00:40]}  Kh7 {[%clk 0:01:33]} 47. Kxg5 {[%clk 0:00:40]}  Kg7 {[%clk 0:01:33]} 48. Bc2 {[%clk 0:00:37]}  Kh8 {[%clk 0:01:34]} 49. Kh6 {[%clk 0:00:36]}  Kg8 {[%clk 0:01:34]} 50. g5 {[%clk 0:00:35]}  Kh8 {[%clk 0:01:35]} 51. g6 {[%clk 0:00:34]}  Kg8 {[%clk 0:01:36]} 52. Bb3+ {[%clk 0:00:32]}  Kh8 {[%clk 0:01:37]} 53. g7# {[%clk 0:00:32]} 1-0


[Site "https://www.chess.com"]

[Event "Titled Tuesday Blitz November 29 Late 2022"]
[White "Harish, Neeraj"]
[Black "Yurovskykh, Oleksandr"]
[WhiteFideId "30958130"]
[BlackFideId "14134020"]
[WhiteElo "1815"]
[BlackElo "2265"]
[Result "0-1"]
[Round "03"]
[TimeControl "180+1"]
[Date "2022.11.30"]
[WhiteClock "0:00:02"]
[BlackClock "0:00:14"]

1. e4 {[%clk 0:02:59]}  d5 {[%clk 0:02:56]} 2. exd5 {[%clk 0:02:46]}  Qxd5 {[%clk 0:02:57]} 3. Nc3 {[%clk 0:02:46]}  Qd8 {[%clk 0:02:56]} 4. d4 {[%clk 0:02:45]}  Nf6 {[%clk 0:02:56]} 5. Nf3 {[%clk 0:02:45]}  Bg4 {[%clk 0:02:56]} 6. h3 {[%clk 0:02:39]}  Bxf3 {[%clk 0:02:56]} 7. Qxf3 {[%clk 0:02:38]}  c6 {[%clk 0:02:56]} 8. Be3 {[%clk 0:02:36]}  e6 {[%clk 0:02:53]} 9. O-O-O {[%clk 0:02:34]}  Bb4 {[%clk 0:02:53]} 10. Ne4 {[%clk 0:02:30]}  Nxe4 {[%clk 0:02:53]} 11. Qxe4 {[%clk 0:02:31]}  Qd5 {[%clk 0:02:53]} 12. Qxd5 {[%clk 0:02:21]}  cxd5 {[%clk 0:02:54]} 13. c3 {[%clk 0:02:20]}  Bd6 {[%clk 0:02:54]} 14. Bb5+ {[%clk 0:02:20]}  Nd7 {[%clk 0:02:54]} 15. Kb1 {[%clk 0:02:15]}  a6 {[%clk 0:02:53]} 16. Bd3 {[%clk 0:02:14]}  h5 {[%clk 0:02:36]} 17. h4 {[%clk 0:02:13]}  g6 {[%clk 0:02:35]} 18. g3 {[%clk 0:02:05]}  Rc8 {[%clk 0:02:35]} 19. Rde1 {[%clk 0:01:40]}  Nb6 {[%clk 0:02:34]} 20. Bc1 {[%clk 0:01:38]}  Nc4 {[%clk 0:02:33]} 21. b3 {[%clk 0:01:37]}  Na5 {[%clk 0:02:25]} 22. Bd2 {[%clk 0:01:30]}  Kd7 {[%clk 0:02:19]} 23. Kb2 {[%clk 0:01:22]}  b5 {[%clk 0:02:11]} 24. Bb1 {[%clk 0:01:10]}  Nc6 {[%clk 0:02:07]} 25. a3 {[%clk 0:01:01]}  a5 {[%clk 0:01:57]} 26. Bd3 {[%clk 0:00:58]}  b4 {[%clk 0:01:54]} 27. axb4 {[%clk 0:00:49]}  axb4 {[%clk 0:01:52]} 28. cxb4 {[%clk 0:00:50]}  Bxb4 {[%clk 0:01:38]} 29. Bxb4 {[%clk 0:00:50]}  Nxb4 {[%clk 0:01:39]} 30. Bb5+ {[%clk 0:00:50]}  Kd6 {[%clk 0:01:28]} 31. Rc1 {[%clk 0:00:48]}  Ra8 {[%clk 0:00:55]} 32. f4 {[%clk 0:00:32]}  Ra2+ {[%clk 0:00:50]} 33. Kc3 {[%clk 0:00:30]}  Nc6 {[%clk 0:00:46]} 34. Bxc6 {[%clk 0:00:25]}  Kxc6 {[%clk 0:00:45]} 35. Rc2 {[%clk 0:00:26]}  Rha8 {[%clk 0:00:33]} 36. Rhh2 {[%clk 0:00:17]}  Ra1 {[%clk 0:00:31]} 37. Kb2+ {[%clk 0:00:16]}  Kd6 {[%clk 0:00:30]} 38. b4 {[%clk 0:00:13]}  R8a2+ {[%clk 0:00:28]} 39. Kc3 {[%clk 0:00:13]}  Ra3+ {[%clk 0:00:28]} 40. Kd2 {[%clk 0:00:12]}  Rb1 {[%clk 0:00:27]} 41. Rg2 {[%clk 0:00:05]}  Rxb4 {[%clk 0:00:26]} 42. g4 {[%clk 0:00:02]}  Rxd4+ {[%clk 0:00:26]} 43. Kc1 {[%clk 0:00:03]}  hxg4 {[%clk 0:00:24]} 44. Rxg4 {[%clk 0:00:02]}  Raa4 {[%clk 0:00:14]} 0-1


[Site "https://www.chess.com"]

[Event "Titled Tuesday Blitz November 29 Late 2022"]
[White "Hartikainen, Jarmo"]
[Black "Melaugh, Shane"]
[WhiteFideId "503134"]
[BlackFideId "2509580"]
[WhiteElo "2202"]
[BlackElo "2025"]
[Result "0-1"]
[Round "03"]
[TimeControl "180+1"]
[Date "2022.11.30"]
[WhiteClock "0:00:14"]
[BlackClock "0:00:44"]

1. e4 {[%clk 0:03:00]}  d6 {[%clk 0:02:56]} 2. d4 {[%clk 0:03:00]}  Nf6 {[%clk 0:02:56]} 3. Nc3 {[%clk 0:03:00]}  Nbd7 {[%clk 0:02:55]} 4. Be2 {[%clk 0:02:54]}  e5 {[%clk 0:02:54]} 5. Nf3 {[%clk 0:02:51]}  c6 {[%clk 0:02:53]} 6. a4 {[%clk 0:02:46]}  h6 {[%clk 0:02:52]} 7. h3 {[%clk 0:02:45]}  Qc7 {[%clk 0:02:51]} 8. Be3 {[%clk 0:02:45]}  Be7 {[%clk 0:02:52]} 9. Qd2 {[%clk 0:02:44]}  Nf8 {[%clk 0:02:48]} 10. g4 {[%clk 0:02:38]}  Rb8 {[%clk 0:02:44]} 11. a5 {[%clk 0:02:21]}  b6 {[%clk 0:02:43]} 12. axb6 {[%clk 0:02:20]}  axb6 {[%clk 0:02:44]} 13. b4 {[%clk 0:01:55]}  exd4 {[%clk 0:02:06]} 14. Nxd4 {[%clk 0:01:52]}  d5 {[%clk 0:02:07]} 15. Nxc6 {[%clk 0:01:43]}  Rb7 {[%clk 0:01:51]} 16. Nxd5 {[%clk 0:01:30]}  Nxd5 {[%clk 0:01:48]} 17. exd5 {[%clk 0:01:30]}  Ng6 {[%clk 0:01:47]} 18. O-O {[%clk 0:01:21]}  O-O {[%clk 0:01:47]} 19. Nxe7+ {[%clk 0:01:13]}  Qxe7 {[%clk 0:01:44]} 20. Bf3 {[%clk 0:01:13]}  Rd7 {[%clk 0:01:42]} 21. Rfe1 {[%clk 0:01:09]}  Qd6 {[%clk 0:01:41]} 22. c4 {[%clk 0:01:03]}  Bb7 {[%clk 0:01:39]} 23. c5 {[%clk 0:01:02]}  Qf6 {[%clk 0:01:31]} 24. Bh1 {[%clk 0:00:20]}  bxc5 {[%clk 0:01:05]} 25. bxc5 {[%clk 0:00:20]}  Rfd8 {[%clk 0:01:04]} 26. Rad1 {[%clk 0:00:20]}  Nh4 {[%clk 0:00:54]} 27. Bd4 {[%clk 0:00:18]}  Nf3+ {[%clk 0:00:52]} 28. Bxf3 {[%clk 0:00:19]}  Qxf3 {[%clk 0:00:53]} 29. c6 {[%clk 0:00:19]}  Bxc6 {[%clk 0:00:52]} 30. Qe3 {[%clk 0:00:18]}  Qxd5 {[%clk 0:00:44]} 31. Bxg7 {[%clk 0:00:14]}  Qg2# {[%clk 0:00:44]} 0-1


[Site "https://www.chess.com"]

[Event "Titled Tuesday Blitz November 29 Late 2022"]
[White "Haszon, David"]
[Black "Leitao, Rafael"]
[WhiteFideId "733610"]
[BlackFideId "2101246"]
[WhiteElo "2211"]
[BlackElo "2609"]
[Result "0-1"]
[Round "03"]
[TimeControl "180+1"]
[Date "2022.11.30"]
[WhiteClock "0:00:11"]
[BlackClock "0:00:26"]

1. d4 {[%clk 0:03:00]}  Nf6 {[%clk 0:02:59]} 2. Bf4 {[%clk 0:03:01]}  e6 {[%clk 0:02:57]} 3. Nf3 {[%clk 0:03:00]}  c5 {[%clk 0:02:56]} 4. e3 {[%clk 0:02:54]}  d5 {[%clk 0:02:56]} 5. Nbd2 {[%clk 0:02:46]}  Nc6 {[%clk 0:02:54]} 6. c3 {[%clk 0:02:46]}  Bd6 {[%clk 0:02:51]} 7. Bg3 {[%clk 0:02:46]}  O-O {[%clk 0:02:50]} 8. Bb5 {[%clk 0:02:43]}  Ne7 {[%clk 0:02:41]} 9. Bd3 {[%clk 0:02:37]}  b6 {[%clk 0:02:22]} 10. Ne5 {[%clk 0:02:32]}  Bb7 {[%clk 0:02:22]} 11. O-O {[%clk 0:02:26]}  Ne4 {[%clk 0:02:18]} 12. Nxe4 {[%clk 0:01:55]}  dxe4 {[%clk 0:02:19]} 13. Bc2 {[%clk 0:01:50]}  Nf5 {[%clk 0:02:13]} 14. Nc4 {[%clk 0:01:15]}  Bxg3 {[%clk 0:01:46]} 15. hxg3 {[%clk 0:01:16]}  cxd4 {[%clk 0:01:42]} 16. exd4 {[%clk 0:01:14]}  Ba6 {[%clk 0:01:41]} 17. b3 {[%clk 0:01:10]}  Bxc4 {[%clk 0:01:26]} 18. bxc4 {[%clk 0:01:09]}  Rc8 {[%clk 0:01:21]} 19. Qe2 {[%clk 0:01:06]}  Nd6 {[%clk 0:01:19]} 20. Bxe4 {[%clk 0:00:58]}  Rxc4 {[%clk 0:01:13]} 21. Rac1 {[%clk 0:00:48]}  Qc7 {[%clk 0:01:13]} 22. Bb1 {[%clk 0:00:30]}  g6 {[%clk 0:01:05]} 23. Qf3 {[%clk 0:00:16]}  Rc8 {[%clk 0:01:04]} 24. d5 {[%clk 0:00:17]}  e5 {[%clk 0:01:01]} 25. Rfe1 {[%clk 0:00:17]}  Rxc3 {[%clk 0:00:59]} 26. Rxc3 {[%clk 0:00:17]}  Qxc3 {[%clk 0:01:00]} 27. Qd1 {[%clk 0:00:17]}  Qb2 {[%clk 0:00:52]} 28. a4 {[%clk 0:00:16]}  Rc5 {[%clk 0:00:51]} 29. Be4 {[%clk 0:00:14]}  Nxe4 {[%clk 0:00:50]} 30. d6 {[%clk 0:00:15]}  Qxf2+ {[%clk 0:00:48]} 31. Kh1 {[%clk 0:00:14]}  Nxg3+ {[%clk 0:00:48]} 32. Kh2 {[%clk 0:00:14]}  Qf4 {[%clk 0:00:32]} 33. Kg1 {[%clk 0:00:12]}  Rc8 {[%clk 0:00:29]} 34. d7 {[%clk 0:00:12]}  Rd8 {[%clk 0:00:29]} 35. Qd6 {[%clk 0:00:12]}  Nf5 {[%clk 0:00:26]} 36. Qc7 {[%clk 0:00:11]}  Qd4+ {[%clk 0:00:27]} 37. Kh1 {[%clk 0:00:10]}  Qh4+ {[%clk 0:00:26]} 38. Kg1 {[%clk 0:00:10]}  Qxe1+ {[%clk 0:00:27]} 39. Kh2 {[%clk 0:00:10]}  Qh4+ {[%clk 0:00:26]} 40. Kg1 {[%clk 0:00:11]}  Qe7 {[%clk 0:00:27]} 41. Qxa7 {[%clk 0:00:11]}  Rxd7 {[%clk 0:00:26]} 0-1


[Site "https://www.chess.com"]

[Event "Titled Tuesday Blitz November 29 Late 2022"]
[White "Hjartarson, Johann"]
[Black "Besedes, Danilo"]
[WhiteFideId "2300044"]
[BlackFideId "946796"]
[WhiteElo "2458"]
[BlackElo "2352"]
[Result "1-0"]
[Round "03"]
[TimeControl "180+1"]
[Date "2022.11.30"]
[WhiteClock "0:00:16"]
[BlackClock "0:00:01"]

1. e4 {[%clk 0:03:00]}  d6 {[%clk 0:02:58]} 2. d4 {[%clk 0:03:00]}  Nf6 {[%clk 0:02:58]} 3. Nc3 {[%clk 0:03:00]}  e5 {[%clk 0:02:59]} 4. Nf3 {[%clk 0:02:58]}  Nbd7 {[%clk 0:02:58]} 5. Bc4 {[%clk 0:02:58]}  Be7 {[%clk 0:02:58]} 6. O-O {[%clk 0:02:56]}  c5 {[%clk 0:02:58]} 7. d5 {[%clk 0:02:53]}  Nf8 {[%clk 0:02:57]} 8. a4 {[%clk 0:02:50]}  Ng6 {[%clk 0:02:56]} 9. g3 {[%clk 0:02:48]}  h5 {[%clk 0:02:53]} 10. h4 {[%clk 0:02:45]}  Bg4 {[%clk 0:02:34]} 11. Be2 {[%clk 0:02:45]}  O-O {[%clk 0:02:33]} 12. Ng5 {[%clk 0:02:40]}  Qd7 {[%clk 0:02:22]} 13. f3 {[%clk 0:02:37]}  Bh3 {[%clk 0:02:18]} 14. Rf2 {[%clk 0:02:35]}  Qc8 {[%clk 0:02:17]} 15. a5 {[%clk 0:02:28]}  Bd7 {[%clk 0:02:13]} 16. a6 {[%clk 0:02:23]}  b6 {[%clk 0:02:11]} 17. b3 {[%clk 0:02:19]}  Nh7 {[%clk 0:02:09]} 18. Rh2 {[%clk 0:02:05]}  f5 {[%clk 0:01:59]} 19. exf5 {[%clk 0:01:56]}  Bxf5 {[%clk 0:01:56]} 20. Nce4 {[%clk 0:01:52]}  Bxe4 {[%clk 0:01:19]} 21. Nxe4 {[%clk 0:01:47]}  Qf5 {[%clk 0:01:13]} 22. Be3 {[%clk 0:01:40]}  Rf7 {[%clk 0:01:07]} 23. Nd2 {[%clk 0:01:29]}  Raf8 {[%clk 0:00:57]} 24. Ra4 {[%clk 0:01:26]}  Qd7 {[%clk 0:00:54]} 25. Bd3 {[%clk 0:01:23]}  Nh8 {[%clk 0:00:50]} 26. f4 {[%clk 0:01:17]}  exf4 {[%clk 0:00:48]} 27. Rxf4 {[%clk 0:01:07]}  Rxf4 {[%clk 0:00:45]} 28. Bxf4 {[%clk 0:01:03]}  Nf6 {[%clk 0:00:46]} 29. Re2 {[%clk 0:00:42]}  Ng4 {[%clk 0:00:37]} 30. Qe1 {[%clk 0:00:40]}  Bxh4 {[%clk 0:00:33]} 31. gxh4 {[%clk 0:00:33]}  Rxf4 {[%clk 0:00:31]} 32. Re8+ {[%clk 0:00:28]}  Kf7 {[%clk 0:00:19]} 33. Bb5 {[%clk 0:00:18]}  Qf5 {[%clk 0:00:03]} 34. Qe7+ {[%clk 0:00:18]}  Kg6 {[%clk 0:00:03]} 35. Bd3 {[%clk 0:00:17]}  Nf7 {[%clk 0:00:01]} 36. Qe6+ {[%clk 0:00:16]} 1-0


[Site "https://www.chess.com"]

[Event "Titled Tuesday Blitz November 29 Late 2022"]
[White "Iinuma, Paul Y"]
[Black "Yanchenko, Roman"]
[WhiteFideId "2031809"]
[BlackFideId "4137329"]
[WhiteElo "2440"]
[BlackElo "2827"]
[Result "0-1"]
[Round "03"]
[TimeControl "180+1"]
[Date "2022.11.30"]
[WhiteClock "0:01:33"]
[BlackClock "0:01:53"]

1. d4 {[%clk 0:02:59]}  d5 {[%clk 0:02:59]} 2. Nc3 {[%clk 0:02:59]}  Bf5 {[%clk 0:02:59]} 3. f3 {[%clk 0:02:57]}  e6 {[%clk 0:02:59]} 4. g4 {[%clk 0:02:57]}  Bg6 {[%clk 0:02:59]} 5. h4 {[%clk 0:02:57]}  h5 {[%clk 0:02:56]} 6. g5 {[%clk 0:02:53]}  Bd6 {[%clk 0:02:56]} 7. Kf2 {[%clk 0:02:47]}  Ne7 {[%clk 0:02:55]} 8. e3 {[%clk 0:02:47]}  a6 {[%clk 0:02:53]} 9. Bd3 {[%clk 0:02:47]}  Bxd3 {[%clk 0:02:51]} 10. Qxd3 {[%clk 0:02:47]}  c5 {[%clk 0:02:52]} 11. Nge2 {[%clk 0:02:46]}  Nbc6 {[%clk 0:02:52]} 12. a3 {[%clk 0:02:46]}  cxd4 {[%clk 0:02:45]} 13. exd4 {[%clk 0:02:45]}  Nf5 {[%clk 0:02:45]} 14. Nd1 {[%clk 0:02:38]}  Qb6 {[%clk 0:02:36]} 15. Kg2 {[%clk 0:02:34]}  Ncxd4 {[%clk 0:02:26]} 16. Nf4 {[%clk 0:02:23]}  g6 {[%clk 0:02:17]} 17. Re1 {[%clk 0:02:16]}  O-O {[%clk 0:02:13]} 18. Kh3 {[%clk 0:02:15]}  Qc7 {[%clk 0:02:11]} 19. c3 {[%clk 0:02:04]}  Nb3 {[%clk 0:02:09]} 20. Rb1 {[%clk 0:02:01]}  Bxf4 {[%clk 0:02:05]} 21. Bxf4 {[%clk 0:01:54]}  Qxf4 {[%clk 0:02:06]} 22. Rg1 {[%clk 0:01:52]}  Qxh4+ {[%clk 0:02:06]} 23. Kg2 {[%clk 0:01:52]}  Qxg5+ {[%clk 0:02:02]} 24. Kf1 {[%clk 0:01:53]}  Nd2+ {[%clk 0:01:57]} 25. Kf2 {[%clk 0:01:45]}  Qh4+ {[%clk 0:01:57]} 26. Ke2 {[%clk 0:01:44]}  Nxb1 {[%clk 0:01:57]} 27. Qxb1 {[%clk 0:01:37]}  Qh2+ {[%clk 0:01:57]} 28. Kf1 {[%clk 0:01:37]}  Ng3+ {[%clk 0:01:55]} 29. Rxg3 {[%clk 0:01:37]}  Qxg3 {[%clk 0:01:56]} 30. Qd3 {[%clk 0:01:37]}  h4 {[%clk 0:01:56]} 31. Nf2 {[%clk 0:01:35]}  h3 {[%clk 0:01:56]} 32. Qd4 {[%clk 0:01:34]}  Qg2+ {[%clk 0:01:56]} 33. Ke2 {[%clk 0:01:35]}  h2 {[%clk 0:01:56]} 34. Qh4 {[%clk 0:01:35]}  Rac8 {[%clk 0:01:53]} 35. Ke3 {[%clk 0:01:33]}  Rc4 {[%clk 0:01:52]} 36. Ng4 {[%clk 0:01:33]}  Rxg4 {[%clk 0:01:52]} 37. fxg4 {[%clk 0:01:33]}  h1=Q {[%clk 0:01:52]} 38. Qxh1 {[%clk 0:01:33]}  Qxh1 {[%clk 0:01:53]} 0-1


[Site "https://www.chess.com"]

[Event "Titled Tuesday Blitz November 29 Late 2022"]
[White "Indjic, Aleksandar"]
[Black "Luo, Terry"]
[WhiteFideId "911925"]
[BlackFideId "30931045"]
[WhiteElo "2592"]
[BlackElo "2265"]
[Result "1-0"]
[Round "03"]
[TimeControl "180+1"]
[Date "2022.11.30"]
[WhiteClock "0:00:54"]
[BlackClock "0:00:04"]

1. e4 {[%clk 0:03:00]}  e5 {[%clk 0:02:58]} 2. Bb5 {[%clk 0:02:59]}  c6 {[%clk 0:02:56]} 3. Ba4 {[%clk 0:02:57]}  Nf6 {[%clk 0:02:57]} 4. Qe2 {[%clk 0:02:48]}  Bc5 {[%clk 0:02:55]} 5. Nf3 {[%clk 0:02:47]}  d6 {[%clk 0:02:53]} 6. d3 {[%clk 0:02:40]}  O-O {[%clk 0:02:53]} 7. Bb3 {[%clk 0:02:40]}  a5 {[%clk 0:02:49]} 8. a3 {[%clk 0:02:39]}  Be6 {[%clk 0:02:47]} 9. Nbd2 {[%clk 0:02:34]}  a4 {[%clk 0:02:43]} 10. Bxe6 {[%clk 0:02:34]}  fxe6 {[%clk 0:02:44]} 11. h3 {[%clk 0:02:34]}  Nbd7 {[%clk 0:02:44]} 12. Nf1 {[%clk 0:02:30]}  b5 {[%clk 0:02:43]} 13. Ng3 {[%clk 0:02:29]}  Qe8 {[%clk 0:02:42]} 14. c3 {[%clk 0:02:25]}  Bb6 {[%clk 0:02:39]} 15. Be3 {[%clk 0:02:17]}  Bxe3 {[%clk 0:02:38]} 16. Qxe3 {[%clk 0:02:18]}  d5 {[%clk 0:02:36]} 17. O-O {[%clk 0:02:15]}  Nh5 {[%clk 0:02:10]} 18. Nxh5 {[%clk 0:02:02]}  Qxh5 {[%clk 0:02:09]} 19. Rae1 {[%clk 0:02:01]}  Rae8 {[%clk 0:02:03]} 20. d4 {[%clk 0:02:00]}  Rf4 {[%clk 0:01:45]} 21. exd5 {[%clk 0:01:59]}  exd5 {[%clk 0:01:44]} 22. Nxe5 {[%clk 0:01:55]}  Re4 {[%clk 0:01:42]} 23. Qxe4 {[%clk 0:01:50]}  dxe4 {[%clk 0:01:41]} 24. Nxd7 {[%clk 0:01:50]}  Qd5 {[%clk 0:01:34]} 25. Nc5 {[%clk 0:01:48]}  h5 {[%clk 0:01:07]} 26. Re3 {[%clk 0:01:47]}  g5 {[%clk 0:01:04]} 27. Rfe1 {[%clk 0:01:47]}  Kg7 {[%clk 0:01:04]} 28. Nxe4 {[%clk 0:01:46]}  Kg6 {[%clk 0:01:04]} 29. g4 {[%clk 0:01:29]}  hxg4 {[%clk 0:01:01]} 30. hxg4 {[%clk 0:01:30]}  Qd7 {[%clk 0:00:58]} 31. f3 {[%clk 0:01:25]}  Qc7 {[%clk 0:00:58]} 32. Kg2 {[%clk 0:01:24]}  Rh8 {[%clk 0:00:54]} 33. Ng3 {[%clk 0:01:23]}  Rf8 {[%clk 0:00:52]} 34. Re5 {[%clk 0:01:22]}  Qf7 {[%clk 0:00:47]} 35. Rf5 {[%clk 0:01:20]}  Qb3 {[%clk 0:00:46]} 36. Rxf8 {[%clk 0:01:18]}  Qxb2+ {[%clk 0:00:45]} 37. Re2 {[%clk 0:01:18]}  Qxc3 {[%clk 0:00:45]} 38. Nh5 {[%clk 0:01:16]}  Qxa3 {[%clk 0:00:43]} 39. Re6+ {[%clk 0:01:11]}  Kh7 {[%clk 0:00:43]} 40. Rf7+ {[%clk 0:01:03]}  Kg8 {[%clk 0:00:41]} 41. Rg7+ {[%clk 0:00:59]}  Kf8 {[%clk 0:00:37]} 42. Rh6 {[%clk 0:00:57]}  Qb2+ {[%clk 0:00:19]} 43. Kh3 {[%clk 0:00:56]}  Qa2 {[%clk 0:00:03]} 44. Rh8+ {[%clk 0:00:54]}  Qg8 {[%clk 0:00:04]} 45. Rhxg8# {[%clk 0:00:54]} 1-0


[Site "https://www.chess.com"]

[Event "Titled Tuesday Blitz November 29 Late 2022"]
[White "Kaganskiy, Gleb"]
[Black "Milosevic, Milos"]
[WhiteFideId "4132025"]
[BlackFideId "964875"]
[WhiteElo "2165"]
[BlackElo "2321"]
[Result "0-1"]
[Round "03"]
[TimeControl "180+1"]
[Date "2022.11.30"]
[WhiteClock "0:00:55"]
[BlackClock "0:01:55"]

1. e4 {[%clk 0:03:00]}  d6 {[%clk 0:03:00]} 2. d4 {[%clk 0:03:00]}  Nf6 {[%clk 0:03:01]} 3. Nc3 {[%clk 0:02:59]}  e5 {[%clk 0:03:02]} 4. Nf3 {[%clk 0:02:58]}  Nbd7 {[%clk 0:03:02]} 5. Bc4 {[%clk 0:02:58]}  Be7 {[%clk 0:03:03]} 6. dxe5 {[%clk 0:02:36]}  dxe5 {[%clk 0:03:03]} 7. Bxf7+ {[%clk 0:02:36]}  Kxf7 {[%clk 0:03:02]} 8. Ng5+ {[%clk 0:02:36]}  Kg8 {[%clk 0:02:54]} 9. Ne6 {[%clk 0:02:37]}  Qe8 {[%clk 0:02:54]} 10. Nxc7 {[%clk 0:02:38]}  Qd8 {[%clk 0:02:53]} 11. Nxa8 {[%clk 0:02:28]}  b6 {[%clk 0:02:52]} 12. Nd5 {[%clk 0:02:21]}  Bd6 {[%clk 0:02:18]} 13. Bg5 {[%clk 0:02:06]}  h6 {[%clk 0:02:15]} 14. Bxf6 {[%clk 0:02:01]}  Nxf6 {[%clk 0:02:15]} 15. a4 {[%clk 0:01:22]}  Kh7 {[%clk 0:02:12]} 16. a5 {[%clk 0:01:20]}  bxa5 {[%clk 0:02:08]} 17. Nxf6+ {[%clk 0:01:13]}  Qxf6 {[%clk 0:02:09]} 18. Rxa5 {[%clk 0:00:58]}  Bb4+ {[%clk 0:02:07]} 19. c3 {[%clk 0:00:56]}  Bxa5 {[%clk 0:02:06]} 20. O-O {[%clk 0:00:55]}  Ba6 {[%clk 0:01:58]} 21. Re1 {[%clk 0:00:55]}  Rxa8 {[%clk 0:01:55]} 0-1


[Site "https://www.chess.com"]

[Event "Titled Tuesday Blitz November 29 Late 2022"]
[White "Keymer, Vincent"]
[Black "Boyer, Mahel"]
[WhiteFideId "12940690"]
[BlackFideId "45102422"]
[WhiteElo "2915"]
[BlackElo "2683"]
[Result "1-0"]
[Round "03"]
[TimeControl "180+1"]
[Date "2022.11.30"]
[WhiteClock "0:00:43"]
[BlackClock "0:00:06"]

1. Nf3 {[%clk 0:03:00]}  g6 {[%clk 0:02:55]} 2. d4 {[%clk 0:03:00]}  Bg7 {[%clk 0:02:56]} 3. c4 {[%clk 0:02:55]}  c5 {[%clk 0:02:55]} 4. d5 {[%clk 0:02:54]}  Nf6 {[%clk 0:02:55]} 5. Nc3 {[%clk 0:02:53]}  d6 {[%clk 0:02:55]} 6. h3 {[%clk 0:02:53]}  e6 {[%clk 0:02:54]} 7. e4 {[%clk 0:02:53]}  exd5 {[%clk 0:02:54]} 8. cxd5 {[%clk 0:02:44]}  O-O {[%clk 0:02:55]} 9. Bd3 {[%clk 0:02:44]}  a6 {[%clk 0:02:49]} 10. a4 {[%clk 0:02:44]}  Nbd7 {[%clk 0:02:48]} 11. O-O {[%clk 0:02:43]}  Nh5 {[%clk 0:02:46]} 12. Bg5 {[%clk 0:02:32]}  Bf6 {[%clk 0:02:45]} 13. Bh6 {[%clk 0:02:28]}  Bg7 {[%clk 0:02:43]} 14. Qd2 {[%clk 0:02:26]}  Ne5 {[%clk 0:02:36]} 15. Nxe5 {[%clk 0:02:07]}  Bxe5 {[%clk 0:02:37]} 16. Bxf8 {[%clk 0:01:55]}  Qxf8 {[%clk 0:02:37]} 17. Ne2 {[%clk 0:01:48]}  Qg7 {[%clk 0:02:30]} 18. Rab1 {[%clk 0:01:47]}  Bd7 {[%clk 0:02:27]} 19. b4 {[%clk 0:01:45]}  c4 {[%clk 0:01:14]} 20. Bxc4 {[%clk 0:01:43]}  Bxa4 {[%clk 0:01:15]} 21. b5 {[%clk 0:01:38]}  Qf6 {[%clk 0:00:35]} 22. f4 {[%clk 0:01:37]}  Nxf4 {[%clk 0:00:26]} 23. Nxf4 {[%clk 0:01:37]}  axb5 {[%clk 0:00:26]} 24. Bxb5 {[%clk 0:01:36]}  Qg5 {[%clk 0:00:11]} 25. Qf2 {[%clk 0:01:29]}  Bc2 {[%clk 0:00:07]} 26. Rbe1 {[%clk 0:01:16]}  Ra2 {[%clk 0:00:05]} 27. Nd3 {[%clk 0:01:01]}  Bd4 {[%clk 0:00:04]} 28. Qxd4 {[%clk 0:00:46]}  Bxd3 {[%clk 0:00:04]} 29. Rf2 {[%clk 0:00:46]}  Rxf2 {[%clk 0:00:04]} 30. Qxf2 {[%clk 0:00:46]}  Bxb5 {[%clk 0:00:04]} 31. Qe3 {[%clk 0:00:45]}  Qxe3+ {[%clk 0:00:02]} 32. Rxe3 {[%clk 0:00:46]}  f6 {[%clk 0:00:02]} 33. Rc3 {[%clk 0:00:45]}  Kf7 {[%clk 0:00:01]} 34. Rc7+ {[%clk 0:00:44]}  Kf8 {[%clk 0:00:02]} 35. Kf2 {[%clk 0:00:44]}  Ba6 {[%clk 0:00:01]} 36. Rxh7 {[%clk 0:00:43]}  Kg8 {[%clk 0:00:01]} 37. Rd7 {[%clk 0:00:43]}  Kf8 {[%clk 0:00:01]} 38. Rxd6 {[%clk 0:00:44]}  Ke7 {[%clk 0:00:02]} 39. Re6+ {[%clk 0:00:44]}  Kf7 {[%clk 0:00:03]} 40. Ke3 {[%clk 0:00:44]}  Bc4 {[%clk 0:00:04]} 41. Kd4 {[%clk 0:00:44]}  b5 {[%clk 0:00:05]} 42. Rb6 {[%clk 0:00:44]}  f5 {[%clk 0:00:06]} 43. e5 {[%clk 0:00:44]}  f4 {[%clk 0:00:06]} 44. Rb7+ {[%clk 0:00:44]}  Kg8 {[%clk 0:00:06]} 45. e6 {[%clk 0:00:44]}  f3 {[%clk 0:00:07]} 46. gxf3 {[%clk 0:00:43]}  Bxd5 {[%clk 0:00:06]} 47. Kxd5 {[%clk 0:00:43]} 1-0


[Site "https://www.chess.com"]